Cogmind - Beta 13 @@@ ROGUE MODE // 2024.07.08 @ 12:24:09 Player: ThatBishHoly Result: Destroyed by G-47 Trooper with Particle Gun Performance ------------- Evolutions (2) 1000 Regions Visited (6) 1200 Robots Destroyed (75) 375 Value Destroyed (2074) 2074 Prototype IDs (2) 40 Alien Tech Used (0) 0 Bonus (812) 812 TOTAL SCORE: 5501 Bonus ------- High Alert Combat Kills 502 Follower Combat Kills 56 Aligned with FarCom 300 Friendly Fire -46 Cogmind --------- Core Integrity 0/550 Matter 134/300 Energy 12/100 System Corruption 1% Temperature Cool (13) Movement Core (900) Ox17 Location -8/Storage Parts ------- > --- POWER (1) -------- (None) > --- PROPULSION (4) --- (None) > --- UTILITY (4) ------ High-capacity Storage Unit Signal Interpreter > --- WEAPON (2) ------- Flak Cannon Improved Grenade Launcher > --- INVENTORY (20) --- Improved Sensor Array Microactuators Precision Beam Rifle Precision Beam Rifle Heavy Laser Heavy Laser EM Pulse Cannon EM Pulse Cannon Advanced Beam Cannon Advanced Beam Cannon Advanced Beam Cannon YOLO Cannon Advanced EMP Blaster Faulty Advanced EMP Blaster Datajack Mining Claw Peak State ------------ > --- POWER ------------ Improved Ion Engine > --- PROPULSION ------- Armored Huge Wheel Armored Huge Wheel > --- UTILITY ---------- High-capacity Storage Unit Signal Interpreter > --- WEAPON ----------- YOLO Cannon > --- INVENTORY -------- Improved Sensor Array Microactuators Precision Beam Rifle Precision Beam Rifle Heavy Laser Heavy Laser EM Pulse Cannon EM Pulse Cannon Advanced Beam Cannon Advanced Beam Cannon Advanced Beam Cannon Flak Cannon Advanced EMP Blaster Advanced EMP Blaster Datajack Mining Claw [Rating: 45] Favorites ----------- Power Improved Ion Engine Engine Improved Ion Engine Propulsion Light Treads Treads Light Treads Wheel Armored Huge Wheel Utility Visual Processing Unit Device Long-range Tractor Beam Storage High-capacity Storage Unit Processor Visual Processing Unit Protection Medium Reflective Plating Weapon Flail Energy Gun EM Pulse Gun Energy Cannon YOLO Cannon Ballistic Cannon Flak Cannon Launcher Rocket Launcher Impact Weapon Flail Slashing Weapon Axe Special Melee Weapon Datajack Build | -11 -10 -10 -10 -9 -8 -8 ------- Run | Yrd Mat Min Exi Min Mat Sto Slots Evolved 4 | . . . . . 4 . Power . | . . . . . . . Propulsion 2 | . . . . . 2 . Utility 2 | . . . . . 2 . Weapon . | . . . . . . . Parts Attached 39 | 6 4 1 3 . 12 13 Power 8 | 1 2 . . . 2 3 Engine 8 | 1 2 . . . 2 3 Core . | . . . . . . . Reactor . | . . . . . . . Propulsion 7 | 2 . . . . 3 2 Treads 3 | 2 . . . . 1 . Leg . | . . . . . . . Wheel 4 | . . . . . 2 2 Hover . | . . . . . . . Flight . | . . . . . . . Utility 10 | 1 1 . 1 . 6 1 Device 2 | . . . . . 1 1 Storage 2 | 1 . . 1 . . . Processor 2 | . 1 . . . 1 . Hackware . | . . . . . . . Protection 4 | . . . . . 4 . Artifact . | . . . . . . . Weapon 14 | 2 1 1 2 . 1 7 Energy Gun 2 | 2 . . . . . . Energy Cannon 1 | . . . . . . 1 Ballistic Gun . | . . . . . . . Ballistic Cannon 1 | . . . . . . 1 Launcher 6 | . . 1 . . 1 4 Special Weapon . | . . . . . . . Impact Weapon 2 | . 1 . 1 . . . Slashing Weapon 1 | . . . . . . 1 Piercing Weapon . | . . . . . . . Special Melee Weapon 1 | . . . 1 . . . Unidentified Prototypes . | . . . . . . . Parts Lost 18 | . . . . . 2 16 Power 4 | . . . . . . 4 Propulsion 4 | . . . . . . 4 Utility 5 | . . . . . 2 3 Weapon 5 | . . . . . . 5 Highest Loss Streak 5 | . . . . . 1 5 To Critical Strikes . | . . . . . . . Average Slot Usage (%) 87 | . 96 100 100 100 78 66 Engine 11 | . 14 14 14 14 8 7 Treads 17 | . 28 28 28 28 9 . Wheel 5 | . . . . . 9 17 Device 2 | . . . . . 5 7 Storage 11 | . 14 14 14 14 9 9 Processor 12 | . 10 14 14 14 14 9 Protection 1 | . . . . . 3 2 Energy Gun 4 | . 21 11 . . . . Launcher 7 | . . 2 14 14 9 5 Impact Weapon 9 | . 6 14 12 14 9 1 Naked Turns . | . . . . . . . Heaviest Build 67 | 14 16 18 53 53 65 67 Greatest Support 60 | 40 40 40 40 40 60 56 Greatest Overweight (x) 18 | . . . 1 1 18 2 Average Overweight (x) . | . . . . 1 . 1 Largest Inventory Capacity 20 | 8 8 8 20 20 20 20 Average Capacity 14 | 7 8 8 9 20 20 20 Most Carried 20 | 5 8 8 8 8 20 20 Average Carried 10 | . 5 8 7 8 13 17 Final Capacity 20 | 8 8 8 20 20 20 20 Final Carried 17 | . 8 8 8 8 17 17 Class Distribution -------------------- 100% | Mutant Dominant Class ---------------- Mutant | -10/Materials Mutant | -10/Mines Mutant | -10/Exiles Mutant | -9/Mines Mutant | -8/Materials Mutant | -8/Storage Resources | -11 -10 -10 -10 -9 -8 -8 ----------- Run | Yrd Mat Min Exi Min Mat Sto Matter Collected 1167 | 258 132 20 . 30 440 287 Remotely 480 | . . . . . 219 261 Salvage Created 1628 | . 277 . . . 406 945 Parts 105 | . 12 . . . 35 58 Haulers Intercepted 3 | . . . . . 2 1 Recyclers Shooed 4 | . 1 . . . 3 . Parts Field Recycled . | . . . . . . . Retrieved Matter . | . . . . . . . Parts Self-Destructed . | . . . . . . . Prevented . | . . . . . . . Kills | -11 -10 -10 -10 -9 -8 -8 ------- Run | Yrd Mat Min Exi Min Mat Sto Combat Hostiles Destroyed 44 | . 7 . . . 12 25 Melee 3 | . 3 . . . . . Guns 2 | . 2 . . . . . Cannons 4 | . . . . . . 4 AOE 31 | . . . . . 11 20 Classes Destroyed 14 | . 5 . . . 5 4 Worker 10 | . 1 . . . 4 5 Builder 10 | . . . . . 6 4 Tunneler 1 | . . . . . 1 . Hauler 3 | . . . . . 2 1 Recycler 3 | . 1 . . . 1 1 Mechanic 1 | . . . . . 1 . Operator 2 | . 1 . . . . 1 Watcher 1 | . . . . . . 1 Swarmer 10 | . 3 . . . 7 . Grunt 20 | . 4 . . . 2 14 Duelist 1 | . . . . . . 1 Protector 1 | . . . . . . 1 Sentry 10 | . . . . . 3 7 Hunter 2 | . . . . . . 2 Best Kill Streak 22 | . 4 . . . 6 22 Combat Bots Only 11 | . 4 . . . 4 11 Max Kills in Single Turn 5 | . 1 . . . 3 5 Gunslinging . | . . . . . . . Exploded 5 | . . . . . 2 5 Melee 1 | . 1 . . . . . Uniques/NPCs Destroyed . | . . . . . . . Combat | -11 -10 -10 -10 -9 -8 -8 -------- Run | Yrd Mat Min Exi Min Mat Sto Hostile Shots Fired 306 | . 33 3 . . 78 192 Missed 94 | . 8 2 . . 20 64 Damage Taken 3541 | . 265 8 . . 1105 2163 Core 638 | . 77 . . . 81 480 Absorbed by Shields 8 | . . . . . . 8 Ignored by Resistances 78 | . . . . . 51 27 Core Remaining (%) 84 | 100 . . . 69 . . Volleys Fired 72 | . 12 . . . 27 33 Largest 2 | . 2 . . . 1 2 Hottest 100 | . 90 . . . 36 100 Shots Fired 88 | . 20 . . . 27 41 Gun 20 | . 20 . . . . . Cannon 11 | . . . . . . 11 Launcher 57 | . . . . . 27 30 Special . | . . . . . . . Kinetic 1 | . . . . . . 1 Thermal 18 | . 8 . . . . 10 Explosive 57 | . . . . . 27 30 Electromagnetic 12 | . 12 . . . . . Robot Hit Streak 7 | . 7 . . . 7 7 Robot Miss Streak 2 | . 2 . . . 1 2 Penetration Max . | . . . . . . . Secondary Targets . | . . . . . . . Shots Hit Robots 84 | . 27 . . . 30 27 Core Hits 102 | . 5 . . . 33 64 Critical Kills 2 | . . . . . 1 1 Critical Parts Destroyed 5 | . 3 . . . 2 . Critical Strikes 7 | . 3 . . . 3 1 Meltdown 1 | . . . . . . 1 Smash 6 | . 3 . . . 3 . Melee Attacks 31 | . 15 . . . 14 2 Impact 29 | . 15 . . . 14 . Slashing 2 | . . . . . . 2 Piercing . | . . . . . . . Sneak Attacks 12 | . 5 . . . 6 1 Combat Hostiles . | . . . . . . . Follow-up Attacks . | . . . . . . . Damage Inflicted 6953 | . 758 . . . 2270 3925 Guns 208 | . 208 . . . . . Cannons 1012 | . . . . . . 1012 Explosions 4510 | . . . . . 1697 2813 Melee 1217 | . 550 . . . 573 94 Ramming 6 | . . . . . . 6 Kinetic 39 | . . . . . . 39 Thermal 1648 | . 87 . . . . 1561 Explosive 3922 | . . . . . 1697 2225 Electromagnetic 121 | . 121 . . . . . Impact 1123 | . 550 . . . 573 . Slashing 94 | . . . . . . 94 Piercing . | . . . . . . . Highest Corruption 1 | . . . . . . 1 Average Corruption 1 | . . . . . . 1 Corruption Purged . | . . . . . . . Corruption Blocked . | . . . . . . . Overload Shots . | . . . . . . . Overflow Damage 498 | . 227 . . . 184 87 Projectiles 8 | . . . . . . 8 Explosions 122 | . . . . . 43 79 Melee 368 | . 227 . . . 141 . Knockbacks 9 | . 2 . . . 4 3 Impact 6 | . 2 . . . 4 . Kinetic 3 | . . . . . . 3 Secondary . | . . . . . . . Self-Inflicted Damage 457 | . . . . . 152 305 Shots 14 | . . . . . 6 8 Rammed 1 | . . . . . . 1 Targets Rammed 1 | . . . . . . 1 Kicked . | . . . . . . . Crushed . | . . . . . . . Highest Temperature 392 | . 392 . . . 18 33 Average Temperature 107 | . 215 . . . 5 10 Received Heat Transfer 1158 | . 126 . . . 258 774 Effects 2 | . 2 . . . . . Interference 2 | . 2 . . . . . Siege Activations . | . . . . . . . Robots Corrupted . | . . . . . . . Combat Hostiles . | . . . . . . . Parts Fried 5 | . 3 . . . 2 . Impact Corruptions 18 | . 10 . . . 8 . Robots Melted 1 | . . . . . . 1 Combat Hostiles 1 | . . . . . . 1 Parts Melted 2 | . . . . . . 2 Heat Transferred 1619 | . 259 . . . . 1360 Parts Sabotaged . | . . . . . . . Parts Stolen . | . . . . . . . Parts Stripped . | . . . . . . . Power Chain Reactions . | . . . . . . . Alert | -11 -10 -10 -10 -9 -8 -8 ------- Run | Yrd Mat Min Exi Min Mat Sto Peak Influence 1257 | . 126 117 . . 412 1257 Initial 156 | . . 31 . . . 156 Average 201 | . 42 41 . . 185 641 Maximum Alert Level 4 | . . . . . 2 4 Low Security (%) 65 | 100 100 100 . 100 56 10 Level 1 23 | . . . . . 40 34 Level 2 3 | . . . . . 2 10 Level 3 3 | . . . . . . 22 Level 4 3 | . . . . . . 22 Level 5 . | . . . . . . . High Security . | . . . . . . . Max Security . | . . . . . . . Squads Dispatched 14 | . 2 . . . 4 8 Investigation 3 | . 1 . . . 1 1 Extermination . | . . . . . . . Reinforcement 7 | . 1 . . . 3 3 Assault 3 | . . . . . . 3 Garrison 1 | . . . . . . 1 Intercept . | . . . . . . . Searches Triggered . | . . . . . . . Construction Impeded 1 | . . . . . 1 . Haulers Reinforced . | . . . . . . . Active Scanning Responses . | . . . . . . . Cargo Convoy Interrupts . | . . . . . . . Stealth | -11 -10 -10 -10 -9 -8 -8 --------- Run | Yrd Mat Min Exi Min Mat Sto Distress Signals 4 | . . . . . 2 2 Communications Jammed . | . . . . . . . Distress Signals . | . . . . . . . Times Spotted 82 | . 7 3 . 3 29 40 Peak Tracking Total 14 | . 3 3 . 1 4 14 Tactical Retreats 2 | . . . . . 1 1 Traps | -11 -10 -10 -10 -9 -8 -8 ------- Run | Yrd Mat Min Exi Min Mat Sto Traps Triggered 3 | . . . . . 3 . Indirectly . | . . . . . . . Trap Hack Attempts . | . . . . . . . Triggered . | . . . . . . . Disarmed . | . . . . . . . Reprogrammed . | . . . . . . . Reused . | . . . . . . . Traps Extracted . | . . . . . . . Installed . | . . . . . . . Triggered . | . . . . . . . Machines | -11 -10 -10 -10 -9 -8 -8 ---------- Run | Yrd Mat Min Exi Min Mat Sto Machines Disabled 19 | . 1 . . . 4 14 Max in Single Turn 2 | . 1 . . . 1 2 Garrison Access 2 | . . . . . 1 1 Machines Repaired . | . . . . . . . Machines Dismantled . | . . . . . . . Machines Sabotaged . | . . . . . . . Overloaded Fab Kills . | . . . . . . . Hacking | -11 -10 -10 -10 -9 -8 -8 --------- Run | Yrd Mat Min Exi Min Mat Sto Machines Accessed 9 | . 2 . . . 5 2 Terminals 7 | . 2 . . . 3 2 Fabricators . | . . . . . . . Repair Stations . | . . . . . . . Recycling Units . | . . . . . . . Scanalyzers 1 | . . . . . 1 . Garrison Access 1 | . . . . . 1 . Total Hacks 15 | . 2 . . . 8 5 Successful 8 | . 2 . . . 5 1 Failed 7 | . . . . . 3 4 Catastrophic 3 | . . . . . 2 1 Database Lockouts . | . . . . . . . Manual 2 | . . . 1 . . 1 Terminals 12 | . 2 . . . 5 5 Fabricators . | . . . . . . . Repair Stations . | . . . . . . . Recycling Units . | . . . . . . . Scanalyzers 2 | . . . . . 2 . Garrison Access 1 | . . . . . 1 . Terminal Hacks 5 | . 2 . . . 2 1 Record 1 | . . . . . 1 . Alert Level 1 | . 1 . . . . . Hauler Manifests 2 | . . . . . 1 1 Zone Layout 1 | . 1 . . . . . Fabricator Hacks . | . . . . . . . Repair Station Hacks . | . . . . . . . Recycling Unit Hacks . | . . . . . . . Scanalyzer 2 | . . . . . 2 . Insert Component 2 | . . . . . 2 . Garrison Access Hacks 1 | . . . . . 1 . Seal Access 1 | . . . . . 1 . Unauthorized Hacks . | . . . . . . . Terminals . | . . . . . . . Fabricators . | . . . . . . . Repair Stations . | . . . . . . . Recycling Units . | . . . . . . . Scanalyzers . | . . . . . . . Garrison Access . | . . . . . . . Data Cores Recovered . | . . . . . . . Used . | . . . . . . . Hacking Detections 4 | . . . . . 3 1 Full Trace Events 1 | . . . . . . 1 Feedback Events 1 | . . . . . . 1 Corruption 1 | . . . . . . 1 Feedback Blocked . | . . . . . . . Robot Schematics Acquired . | . . . . . . . Robots Built . | . . . . . . . Authchips . | . . . . . . . Time . | . . . . . . . Total Robot Build Rating . | . . . . . . . Part Schematics Acquired . | . . . . . . . Parts Built . | . . . . . . . Authchips . | . . . . . . . Time . | . . . . . . . Total Part Build Rating . | . . . . . . . Parts Repaired . | . . . . . . . Time . | . . . . . . . Parts Recycled . | . . . . . . . Recycled Matter . | . . . . . . . Retrieved Matter . | . . . . . . . Retrieved Components . | . . . . . . . Parts Scanalyzed . | . . . . . . . Part Schematics Acquired . | . . . . . . . Parts Damaged . | . . . . . . . Bothacking | -11 -10 -10 -10 -9 -8 -8 ------------ Run | Yrd Mat Min Exi Min Mat Sto Used RIF Installer . | . . . . . . . Robots Hacked . | . . . . . . . Non-combat . | . . . . . . . Combat . | . . . . . . . Robot Hacks Applied . | . . . . . . . Relay Couplers Released . | . . . . . . . Fabnet Peak Effective % . | . . . . . . . Robots Rewired . | . . . . . . . Allies Hacked . | . . . . . . . Hacks Repelled . | . . . . . . . Allies | -11 -10 -10 -10 -9 -8 -8 -------- Run | Yrd Mat Min Exi Min Mat Sto Total Allies 3 | . . 3 . . . . Largest Group 3 | . . 3 3 3 1 . Highest-Rated Group 40 | . . 40 40 40 8 . Highest-Rated Ally 16 | . . 16 16 16 8 . Total Orders . | . . . . . . . Ally Attacks 45 | . . 8 . 20 17 . Total Damage 359 | . . 79 . 141 139 . Kills 8 | . . 4 . 2 2 . Allies Corrupted . | . . . . . . . Allies Melted . | . . . . . . . Intel | -11 -10 -10 -10 -9 -8 -8 ------- Run | Yrd Mat Min Exi Min Mat Sto Robot Analysis Total . | . . . . . . . Derelict Logs Recovered 1 | . . . . 1 . . Drone Launches . | . . . . . . . Drone Recoveries . | . . . . . . . Exploration | -11 -10 -10 -10 -9 -8 -8 ------------- Run | Yrd Mat Min Exi Min Mat Sto Turns Passed 3846 | 65 588 400 845 142 1305 501 Spaces Moved 2282 | 43 314 244 506 60 800 315 Core 14 | 13 . . . . 1 . Treads 1411 | 30 314 244 506 60 257 . Legs . | . . . . . . . Wheels 857 | . . . . . 542 315 Hover . | . . . . . . . Flight . | . . . . . . . Fastest Speed 50 | 50 160 160 160 240 100 115 Average Speed 151 | 126 160 160 165 240 145 115 Slowest Speed 950 | 160 160 160 240 240 950 130 Overloaded Moves . | . . . . . . . Propulsion Burnouts . | . . . . . . . Robots Hopped . | . . . . . . . Cave-ins Triggered . | . . . . . . . Exploration Rate (%) 45 | 4 37 47 90 29 51 63 Regions Visited 6 Branch Regions 4 Pre-discovered Areas 1 | . . . . 1 . . Known Exits Taken 1 | . . . . . 1 . Unknown Exits Taken 5 | 1 1 1 1 1 . . Scrap Searched 2 | . . . . 2 . . Spaces Dug . | . . . . . . . Terrain Destroyed 540 | . . . . . 173 367 Melee . | . . . . . . . Projectile 1 | . . . . . . 1 AOE 539 | . . . . . 173 366 Terrain Rammed . | . . . . . . . Walls Destroyed . | . . . . . . . Machines Disabled . | . . . . . . . Actions | -11 -10 -10 -10 -9 -8 -8 --------- Run | Yrd Mat Min Exi Min Mat Sto Total 2513 | 53 357 254 515 59 892 383 Wait 12 | . . 9 . . . 3 Move 2276 | 42 313 243 505 59 799 315 Hop . | . . . . . . . Pick Up 57 | 5 11 . 1 . 26 14 Fast Attach 4 | 1 . 1 . . 2 . Attach 26 | 5 1 . . . 8 12 Detach 1 | . . . . . . 1 Swap 9 | . 3 . 3 . 2 1 Drop 21 | . 2 1 3 . 14 1 Fire 72 | . 12 . . . 27 33 Melee 31 | . 15 . . . 14 2 Ram 1 | . . . . . . 1 Kick . | . . . . . . . Crush . | . . . . . . . Escape Stasis . | . . . . . . . Rewire 3 | . . . 3 . . . Trap . | . . . . . . . Miscellaneous . | . . . . . . . Route ------- -11/Scrapyard -10/Materials -10/Mines -10/Exiles -9/Mines -8/Materials (discovered 2 exits: *Sto x2) -8/Storage History --------- Turn | Location | Event 14 | -11/Scrapyard | Discovered new exit (range 16) 66 | -11/Scrapyard | Entered Materials 300 | -10/Materials | Build established: Mutant 635 | -10/Materials | Discovered new exit (range 7) 654 | -10/Materials | Entered Mines 842 | -10/Mines | Assisted by bots powering up and referring to "LRC-V3" 970 | -10/Mines | Received a Rocket Launcher from a helpful Derelict 1040 | -10/Mines | Deemed a non-threat by the Exiles lab entrance 1041 | -10/Mines | Discovered new exit (range 5) 1054 | -10/Mines | Entered Exiles 1054 | -10/Exiles | Accompanied by 3 allies 1107 | -10/Exiles | Met 8R-AWN 1160 | -10/Exiles | Met EX-HEX 1283 | -10/Exiles | Met EX-BIN 1302 | -10/Exiles | Aligned with FarCom system 1304 | -10/Exiles | Given EX-Vault access code 1347 | -10/Exiles | Opened EX-Vault 1367 | -10/Exiles | Found Prototype Energy Cannon 1400 | -10/Exiles | Warned to stay clear of 0b10 Research branches 1450 | -10/Exiles | Met EX-DEC 1547 | -10/Exiles | Visited The Gauntlet 1868 | -10/Exiles | Discovered new exit (range 15) 1899 | -10/Exiles | Left Exiles lab with YOLO Cannon 1899 | -10/Exiles | Entered Mines 1899 | -9/Mines | Accompanied by 3 allies 1900 | -9/Mines | Assembled infested the area 1902 | -9/Mines | Met a Derelict bent on vengeance 1905 | -9/Mines | Assisted by a Guerilla fighting off Assembled 1967 | -9/Mines | Discovered new exit (range 14) 1988 | -9/Mines | Learned location of Storage (-8) 2041 | -9/Mines | Entered Materials 2041 | -8/Materials | Accompanied by 1 ally 2041 | -8/Materials | Evolved 4 slots: Propulsion x2, Utility x2 2671 | -8/Materials | Identified YOLO Cannon 3311 | -8/Materials | Discovered new exit (range 16) 3329 | -8/Materials | Discovered new exit (range 16) 3345 | -8/Materials | Identified exit to Storage 3346 | -8/Materials | Entered Storage 3622 | -8/Storage | Lost 5 parts (1p1n1u2w) 3643 | -8/Storage | Garrison activated, responded to threat 3674 | -8/Storage | Destroyed 11 combat bots 3687 | -8/Storage | Lost 4 parts (1p1u2w) 3739 | -8/Storage | Core integrity fell below 50% 3746 | -8/Storage | First assault squad dispatched 3836 | -8/Storage | Core integrity fell below 20% 3847 | -8/Storage | Destroyed by G-47 Trooper with Particle Gun Last Messages --------------- 03796_ K-01 Serf collects debris. 03797_ C-30 ARC bursts open, deploying its payload. 03797_ G-50 Soldier unfolds itself. 03797_ B-36 Bruiser unfolds itself. 03797_ G-47 Trooper unfolds itself. 03797_ I-25 Savior unfolds itself. 03797_ Critical hit (Burn: +37). 03799_ K-01 Serf collects debris. 03835_ Arm. Huge Wheel destroyed. 03836_ Slammed into A-02 Transporter. 03839_ Acquired Lgt. Deuterium Engine. 03839_ Critical hit (Burn: +37). 03841_ Lgt. Deuterium Engine destroyed. 03843_ Arm. Huge Wheel destroyed. 03846_ L-31 Rogue knocked back. 03846_ G-47 Trooper knocked back. 03846_ L-31 Rogue destroyed. 03846_ G-47 Trooper destroyed. 03846_ I-25 Savior destroyed. 03846_ G-47 Trooper destroyed. Map ----- +----------------------------------------------------+ | | | | | | | | | | | | | | | | | | | | | | | | | | | | | | | | | | | | | | | ???????????????????????####??????????????????????? | | ??????????????????????? #?????????????????????? | | ??????????????????????? #?????????????????????? | | ???????????????????????? #?????????????????????? | | ???????????????????????? ######????????????????? | | ##???????????????????#+## ###??????????????? | | ##?????????????????# # @ = g = #??????????????? | | "##????????######### ## *%g % #??????????????? | | #????????#[ ## # %b !! #??????????????? | | ######???#! # # g% g%! !#??????????????? | | ##[[[#???#/! / T # Y Y###??????????????? | | ##[[[###?# # ### #??????#?????????? | | "# #"#?# ## a #?#i#???? ##????????? | | " "#??? ## ### #?? "#????????? | | #"""""######"##/## # T#????????? | | " + ]] "#????????? | | " #####+### #### ]] #?????????? | | "" #??? ###m##?????] #?????????? | | +??""" # u ???????###?????????? | | #??""" #! ??????????????????? | | """""""## #??""" # !#?????????????????? | | "## ### #?"""" # #?????????????????? | | "#######??# #?? # ! [ #?????????????????? | | ???""%" #?????## #?????????????????? | | #?"T %" ?????########?????????????????? | | #?"" "######/#????????????????????????????? | | """ #?## #?????? ????????????????????????????? | | """ #??# #???????????????????????????????????? | | """ #??# #???????????????????????????????????? | | ?"" #??# #???????????????????????????????????? | | ? ? #??? ????????????????????????????????????? | +----------------------------------------------------+ Best States ------------- Heat Dissipation 31 Energy Generation 14 Energy Capacity 275 Matter Stores 300 Matter Capacity 300 Sight Range 18 Terrain Scan Density 10 Armor Coverage 225 Resistance: TH 15 Evasion (%) 50 Recoil Reduction 3 Item Schematics ----------------- None Robot Schematics ------------------ None Fabricated ------------ Nothing Alien Tech Used ----------------- None Achievements -------------- None Challenges ------------ None Game ------ Seed InertialGaussClaws Manual? 0 Play Time 00:36:22 Cumulative 32.0 hours Start 2024.07.08 @ 11:49:34 End 2024.07.08 @ 12:24:09 Sessions 1 Manual Loads 0 Difficulty Rogue Special Mode None Game No. 100 Rogue 100 Adventurer 0 Explorer 0 Win Type - Total 0 Types 0/0/0/0/0/0/0/0/0 Lore% 18 Gallery% 33 Achievement% 23 Wizard Run 0 Options --------- Layout 0 ASCII 0 Keyboard 0 Movement Arrows Keybinds 0 Fullscreen 1 Font 12/Smallcaps Map View 38x28 Zoom Use 98% Tactical HUD 1 Map Filters NONE Filters NONE Steam SD RUN: 6d6c856c-77cb-4e34-8b39-5ead62744075